bitfinex/quotes_ETHUSD_20250324
["timestamp","ask_amount","ask_price","bid_price","bid_amount"]
[1742800466640,4.8244,2072.8,2072.5,4.93021068]
[1742800466821,4.82424,2072.9,2072.5,4.93021068]
[1742800468232,4.82424,2072.9,2072.5,9.75512068]
[1742800468421,4.82424,2072.9,2072.6,4.82483]
[1742800468617,8.40388,2073.0,2072.7,0.10559864]
[1742800469338,0.5799,2073.2,2072.7,1.0811325]
[1742800469627,4.712,2073.4,2073.2,4.82343]
[1742800469828,4.712,2073.4,2073.3,0.10477137]
[1742800470030,4.712,2073.4,2073.1,4.82364]
[1742800470233,4.712,2073.4,2073.2,0.10477137]
[1742800470445,4.712,2073.4,2073.2,4.92807137]
[1742800470745,4.712,2073.4,2073.2,6.24927851]
[1742800471244,3.0,2073.6,2073.2,6.24927851]
[1742800471526,4.712,2073.6,2073.3,4.82321]
[1742800471830,4.712,2073.6,2073.4,4.82297]
[1742800472028,4.712,2073.6,2073.5,0.10477137]
[1742800472335,7.712,2073.7,2073.5,0.10477137]
[1742800472830,7.712,2073.7,2073.6,0.10477137]
[1742800473025,7.712,2073.7,2073.4,4.82297]
[1742800473204,7.712,2073.7,2073.5,0.10477137]
[1742800473635,0.5799,2073.9,2073.5,4.92740137]
[1742800473804,3.0,2073.8,2073.5,5.42014151]
[1742800475956,3.0,2073.8,2073.5,6.24854151]
[1742800476678,3.0,2073.8,2073.5,11.07119151]
[1742800476870,0.5799,2074.1,2073.5,6.24850151]
[1742800477152,4.711,2074.0,2073.7,4.82216]
[1742800477453,7.711,2074.0,2073.8,0.09664791]
[1742800479961,7.75937298,2074.0,2073.8,0.09664791]
[1742800480258,7.711,2074.0,2073.6,4.82234]
[1742800480474,7.75937298,2074.0,2073.6,9.64472]
[1742800480614,7.75937298,2074.0,2073.7,4.91892791]
[1742800480957,7.75937298,2074.0,2073.7,0.09664791]
[1742800480958,7.711,2074.0,2073.7,0.09664791]
[1742800481138,7.711,2074.0,2073.7,4.91891791]
[1742800482223,13.786031,2074.0,2073.7,0.09664791]
[1742800482429,14.365931,2074.0,2073.5,5.65112]
[1742800482628,13.11251,2074.0,2073.6,4.91915791]
[1742800482846,12.53261,2074.0,2073.6,4.91915791]
[1742800483419,7.711,2074.0,2073.7,4.82215]
[1742800483815,7.711,2074.0,2073.8,0.09664791]
[1742800484299,7.711,2074.0,2073.6,4.82241]
[1742800484500,7.711,2074.0,2073.9,0.09664791]
[1742800485414,4.82103,2074.3,2073.9,4.91837791]
[1742800485696,4.71,2074.2,2073.9,4.91837791]
[1742800486199,9.53119,2074.2,2073.9,0.09664791]
[1742800486395,4.82139,2074.1,2073.9,0.09664791]
[1742800486575,4.8216,2074.0,2073.6,5.57659]
[1742800486770,5.40129,2074.1,2073.6,5.5765]
[1742800487070,5.40129,2074.1,2073.7,4.82227]
[1742800487278,11.02439,2074.2,2073.8,4.82205]
[1742800490310,9.53118,2074.2,2073.8,4.82205]
[1742800490507,9.53118,2074.2,2073.9,4.82172]
[1742800490508,4.71,2074.2,2073.9,4.82172]
[1742800490703,9.53117,2074.2,2073.8,4.82202]
[1742800490901,9.53117,2074.2,2074.0,0.09441147]
[1742800491212,9.53117,2074.2,2073.8,4.82202]
[1742800491376,12.53117,2074.2,2074.1,0.09441147]
[1742800491574,12.53117,2074.2,2073.8,4.82195]
[1742800491778,12.53117,2074.2,2074.1,0.09441147]
[1742800492100,4.82146,2074.1,2073.7,4.82226]
[1742800492300,4.82176,2074.0,2073.6,0.7542]
[1742800492501,4.82176,2074.0,2073.6,5.57668]
[1742800492701,4.82176,2074.0,2073.6,6.616605]
[1742800493109,4.82176,2074.0,2073.6,5.57668]
[1742800493324,4.82191,2073.9,2073.6,0.7542]
[1742800493618,4.82174,2074.0,2073.6,5.57672]
[1742800493785,4.82174,2074.0,2073.6,0.7542]
[1742800494124,4.82192,2073.9,2073.6,0.7542]
[1742800494310,7.82161,2074.0,2073.6,5.57663]
[1742800494614,1.264298,2073.9,2073.6,5.57663]
[1742800495314,7.82161,2074.0,2073.6,5.57663]
[1742800496812,4.82194,2073.9,2073.6,0.7542]
[1742800497130,4.82209,2073.8,2073.4,5.63624]
[1742800497298,9.53009,2073.8,2073.4,5.63624]
[1742800498011,4.708,2073.8,2073.4,5.63624]
[1742800498216,11.37163098,2073.8,2073.4,5.63624]
[1742800498422,6.501178,2073.8,2073.4,10.45904]
[1742800498583,6.501178,2073.8,2073.4,10.45895]
[1742800498783,6.501178,2073.8,2073.4,5.6361]
[1742800499108,4.708,2073.8,2073.5,4.82276]
[1742800499282,4.708,2073.8,2073.6,4.82252]
[1742800499481,4.708,2073.8,2073.5,4.82273]
[1742800500332,4.708,2073.8,2073.5,4.82263]
[1742800501013,4.708,2073.8,2073.6,4.82238]
[1742800501207,4.708,2073.8,2073.7,0.8133]
[1742800501385,4.8214,2074.1,2073.7,5.63559]
[1742800501585,4.708,2074.1,2073.7,5.63538]
[1742800502600,4.708,2074.1,2073.7,10.45757]
[1742800502805,4.708,2074.1,2073.8,4.82206]
[1742800503631,9.57781298,2074.1,2073.7,5.63538]
[1742800503833,9.52944,2074.1,2073.7,10.45754]
[1742800504131,4.708,2074.1,2073.7,10.45754]
[1742800504436,4.708,2074.1,2073.7,11.503294]
[1742800504621,4.75637298,2074.1,2073.7,11.503294]
[1742800504931,4.708,2074.1,2073.8,4.82205]
[1742800505131,4.75637298,2074.1,2073.8,4.82205]
[1742800505334,4.708,2074.1,2073.8,4.82205]
[1742800506029,4.708,2074.1,2073.9,0.09497599]
[1742800506236,4.708,2074.1,2073.9,4.91674599]
[1742800506438,0.5799,2074.3,2073.9,1.25476099]
[1742800506645,26.67,2074.6,2074.3,4.82081]
[1742800506802,31.378,2074.6,2074.2,4.82094]
[1742800507000,31.378,2074.6,2074.4,0.0929344]
[1742800507302,31.378,2074.6,2074.5,0.0929344]
[1742800507303,4.708,2074.6,2074.5,0.0929344]
[1742800507501,4.708,2074.6,2074.3,4.82077]
[1742800507813,4.708,2074.6,2074.4,0.0929344]
[1742800508008,5.7236333,2074.6,2074.4,0.0929344]
[1742800508208,5.7236333,2074.6,2074.2,9.64211]
[1742800508413,4.708,2074.6,2074.5,0.0929344]
[1742800508622,4.82077,2074.4,2074.1,0.8133]
[1742800509306,4.82077,2074.4,2074.0,4.82137]
[1742800509503,4.8209,2074.3,2073.9,5.57587]
[1742800509728,4.82071,2074.4,2074.0,4.82158]
[1742800509930,4.82093,2074.3,2073.9,5.57587]
[1742800510130,5.44899298,2074.4,2073.9,10.39761]
[1742800510337,5.44899298,2074.4,2073.9,10.39756]
[1742800510338,12.06762528,2074.4,2073.9,10.39756]
[1742800510502,7.1983623,2074.4,2074.0,4.82157]
[1742800510703,7.1983623,2074.4,2073.9,5.57582]
[1742800510934,4.82092,2074.3,2073.9,5.57582]
[1742800511411,7.1983623,2074.4,2073.9,10.39744]
[1742800511612,4.82107,2074.3,2073.9,5.57572]
[1742800511931,4.82107,2074.3,2073.9,4.82162]
[1742800512133,4.86944298,2074.3,2073.9,4.82162]
[1742800512831,4.82107,2074.3,2073.9,4.82162]
[1742800514019,9.5282,2074.2,2073.8,5.5761]
[1742800515630,4.707,2074.2,2073.8,5.57599]
[1742800516138,9.52817,2074.2,2073.8,10.39795]
[1742800516343,9.52817,2074.2,2073.8,5.57599]
[1742800516506,0.5799,2074.4,2073.8,0.7541]
[1742800516710,4.707,2074.4,2074.2,4.82105]
[1742800517157,4.707,2074.4,2074.3,4.8209]
[1742800517445,26.66,2074.7,2074.4,4.82053]
[1742800517645,31.367,2074.7,2074.5,5.57453]
[1742800517845,4.707,2074.7,2074.5,5.57453]
[1742800518439,4.707,2074.8,2074.6,4.8201]
[1742800518648,4.81915,2075.1,2074.7,4.81997]
[1742800518815,0.5799,2075.2,2074.6,4.8201]
[1742800518816,5.39886,2075.2,2074.8,4.81964]
[1742800519159,5.39886,2075.2,2074.6,4.82019]
[1742800519160,7.81947,2075.0,2074.5,0.7541]
[1742800519312,5.44792298,2074.9,2074.5,0.7541]
[1742800519651,5.3995,2074.9,2074.5,4.82026]
[1742800519830,7.81936,2075.0,2074.6,5.57414]
[1742800520029,3.0,2075.0,2074.6,5.57413]
[1742800520224,3.0,2075.0,2074.8,4.81968]
[1742800520425,3.0,2075.0,2074.7,4.81987]
[1742800521144,3.0,2075.0,2074.6,0.7541]
[1742800521316,3.0,2075.0,2074.7,4.81994]
[1742800522158,3.04837298,2075.0,2074.7,4.81994]
[1742800522512,3.04837298,2075.0,2074.6,5.57428]
[1742800522830,3.04837298,2075.0,2074.6,11.433853]
[1742800523139,7.86765298,2075.0,2074.6,6.613583]
[1742800523341,3.04837298,2075.0,2074.7,4.81976]
[1742800523546,3.0,2075.0,2074.7,4.81976]
[1742800523948,3.0,2075.0,2074.7,9.63956]
[1742800524150,3.0,2075.0,2074.7,4.81976]
[1742800525222,4.81884,2075.2,2074.7,5.9631143]
[1742800525418,4.705,2075.3,2075.2,4.81881]
[1742800525820,4.705,2075.3,2075.1,4.81897]
[1742800525821,7.705,2075.3,2075.1,4.81897]
[1742800526227,7.705,2075.3,2075.1,9.63791]
[1742800526453,7.705,2075.3,2075.1,4.81894]
[1742800526951,7.705,2075.3,2075.0,5.57263]
[1742800527143,7.705,2075.3,2075.0,6.611831]
[1742800527451,7.705,2075.3,2075.1,4.81904]
[1742800527956,7.705,2075.3,2075.0,11.430971]
[1742800528553,7.705,2075.3,2075.0,6.611741]
[1742800529049,7.705,2075.3,2075.0,11.430911]
[1742800529275,7.705,2075.3,2075.1,1.1430911]
[1742800529459,7.705,2075.3,2075.0,5.57254]
[1742800529618,7.705,2075.3,2075.1,4.81899]
[1742800529918,7.705,2075.3,2075.0,5.57263]
[1742800530318,7.705,2075.3,2075.0,10.39181]
[1742800530550,4.705,2075.3,2075.1,4.819]
[1742800530754,0.5799,2075.6,2075.2,4.81867]
[1742800530946,3.5799,2075.6,2075.3,4.81848]
[1742800531128,4.704,2075.6,2075.3,4.81848]
[1742800531328,4.81785,2075.7,2075.3,4.81848]
[1742800531654,3.0,2075.6,2075.2,9.63737]
[1742800531855,7.86628298,2075.6,2075.3,1.0676528]
[1742800533262,7.81791,2075.6,2075.3,1.0676528]
[1742800533659,4.81813,2075.5,2075.3,1.0676528]
[1742800533862,5.39748,2075.8,2075.4,0.7534]
[1742800534037,0.104012,2075.9,2075.6,4.81765]
[1742800534244,0.104012,2075.9,2075.7,5.299375]
[1742800534752,0.104012,2075.9,2075.7,0.481765]
[1742800537060,0.104012,2075.9,2075.8,5.58901]
[1742800539664,0.104012,2075.9,2075.8,0.7716]
[1742800539972,4.921302,2075.9,2075.5,4.8181]
[1742800540149,4.921302,2075.9,2075.5,5.37697]
[1742800540363,0.104012,2075.9,2075.6,4.81775]
[1742800540564,0.104012,2075.9,2075.5,5.37697]
[1742800540565,0.104012,2075.9,2075.7,4.81763]
[1742800540767,0.104012,2075.9,2075.7,5.58073]
[1742800541058,0.104012,2075.9,2075.8,0.558073]
[1742800546571,0.104012,2075.9,2075.7,0.7631]
[1742800546572,4.921192,2075.9,2075.5,6.13997]
[1742800546874,0.104012,2075.9,2075.6,4.81777]
[1742800548943,4.921202,2075.9,2075.6,4.81777]
[1742800549366,0.104012,2075.9,2075.6,4.81777]
[1742800549774,4.921202,2075.9,2075.5,6.14014]
[1742800549980,4.921202,2075.9,2075.5,0.7631]
[1742800550189,5.39743,2075.8,2075.4,4.81834]
[1742800550675,0.104012,2075.9,2075.5,4.81811]
[1742800550845,4.921312,2075.9,2075.5,4.81811]
[1742800551040,9.738712,2075.9,2075.4,4.81834]
[1742800551281,4.81774,2075.7,2075.3,0.7631]
[1742800551451,4.81797,2075.6,2075.2,4.81862]
[1742800552054,4.86634298,2075.6,2075.2,4.81862]
[1742800552248,4.81826,2075.5,2075.1,0.7631]
[1742800552450,5.39837,2075.4,2075.0,4.81913]
[1742800552652,0.5799,2075.4,2075.1,4.81903]
[1742800553471,0.5799,2075.4,2075.0,6.334144]
[1742800553650,5.39834,2075.4,2075.0,6.334144]
[1742800554387,5.2799,2075.4,2074.7,5.63006]
[1742800554686,10.21816,2075.1,2074.7,4.81996]
[1742800554843,10.21816,2075.1,2074.5,5.63041]
[1742800554844,9.63876,2075.0,2074.5,5.63041]
[1742800555047,14.33876,2075.0,2074.5,5.63041]
[1742800555283,14.33876,2075.0,2074.5,7.18139792]
[1742800555583,9.51928,2075.0,2074.5,4.82021]
[1742800556068,4.7,2075.0,2074.6,4.82008]
[1742800556279,4.7,2075.0,2074.7,4.81996]
[1742800556754,4.7,2075.0,2074.8,4.81962]
[1742800558489,4.701,2075.2,2074.9,4.81928]
[1742800558651,4.701,2075.2,2075.0,4.81918]
[1742800558857,4.701,2075.2,2074.9,0.562938]
[1742800558858,4.701,2075.2,2074.9,5.382438]
[1742800559173,8.39806,2075.5,2075.1,5.62912]
[1742800559353,3.0,2075.4,2075.1,5.62912]
[1742800559755,5.39806,2075.5,2075.1,5.62912]
[1742800559977,0.5799,2075.5,2075.2,4.81878]
[1742800560564,0.5799,2075.5,2075.3,4.81849]
[1742800560754,0.5799,2075.7,2075.1,0.8101]
[1742800560954,0.5799,2075.7,2075.3,4.81858]
[1742800560955,13.09855,2075.7,2075.3,4.81858]
[1742800561179,4.8179,2075.6,2075.2,4.81875]
[1742800561754,3.0,2075.7,2075.5,4.8181]
[1742800562653,0.104012,2075.9,2075.7,4.81765]
[1742800562966,0.104012,2075.9,2075.7,4.81751]
[1742800563166,0.104012,2075.9,2075.8,5.379571]
[1742800563367,0.104012,2075.9,2075.8,4.81741]
[1742800563666,0.104012,2075.9,2075.7,4.8176]
[1742800563868,0.104012,2075.9,2075.6,5.62197]
[1742800564064,0.5799,2075.8,2075.4,4.81812]
[1742800564270,5.39744,2075.8,2075.4,4.81812]
[1742800564586,10.09744,2075.8,2075.4,4.81812]
[1742800564756,4.7,2075.8,2075.5,9.63612]
[1742800564959,4.7,2075.8,2075.5,4.81802]
[1742800565383,4.7,2075.8,2075.5,4.81801]
[1742800565592,4.7,2075.8,2075.5,4.81811]
[1742800566468,9.51745,2075.8,2075.4,9.63656]
[1742800566663,9.51745,2075.8,2075.4,4.81822]
[1742800566880,9.51745,2075.8,2075.5,4.81811]
[1742800567079,9.51745,2075.8,2075.5,5.781743]
[1742800567597,4.7,2075.8,2075.5,5.781633]
[1742800567804,4.7,2075.8,2075.5,4.818]
[1742800567960,4.7,2075.8,2075.6,4.81774]
[1742800568387,4.7,2075.8,2075.7,4.81765]
[1742800569200,4.7,2075.8,2075.6,5.59774]
[1742800570103,4.7,2075.8,2075.7,4.81765]
[1742800570668,4.7,2075.8,2075.6,5.59772]
[1742800571109,4.7,2075.8,2075.7,4.81765]
[1742800571263,0.104012,2075.9,2075.7,4.81765]
[1742800571821,0.104012,2075.9,2075.7,4.81747]
[1742800573460,0.104012,2075.9,2075.7,4.81763]
[1742800573667,0.104012,2075.9,2075.5,4.81805]
[1742800573866,4.921302,2075.9,2075.5,4.81805]
[1742800574409,0.104012,2075.9,2075.5,4.81811]
[1742800574611,0.104012,2075.9,2075.8,4.81741]
[1742800574769,0.104012,2075.9,2075.8,6.340686]
[1742800577009,0.104012,2075.9,2075.8,7.120586]
[1742800580716,0.104012,2075.9,2075.8,7.670586]
[1742800585721,0.104012,2075.9,2075.8,7.120586]
[1742800586448,0.104012,2075.9,2075.8,7.670586]
[1742800593935,0.104012,2075.9,2075.8,6.340686]
[1742800594100,0.104012,2075.9,2075.8,4.81741]
[1742800594703,0.104012,2075.9,2075.4,4.81817]
[1742800595022,0.104012,2075.9,2075.1,4.81889]
[1742800595023,5.39791,2075.6,2075.1,4.81889]
[1742800595217,0.5799,2075.6,2075.2,4.81867]
[1742800595615,5.39787,2075.6,2075.2,4.81867]
[1742800596514,4.81814,2075.5,2075.1,4.81889]
[1742800597336,0.5799,2075.6,2075.2,4.81866]
[1742800597504,5.39781,2075.6,2075.2,4.81866]
[1742800597707,0.5799,2075.6,2075.2,4.81866]
[1742800597919,0.5799,2075.6,2075.2,0.04818326]
[1742800598119,0.5799,2075.6,2075.3,4.81836]
[1742800598639,0.5799,2075.6,2075.3,9.63677]
[1742800598936,7.697,2075.7,2075.3,5.6433947]
[1742800599116,12.51476,2075.7,2075.3,4.81836]
[1742800599437,12.51476,2075.7,2075.3,9.63682]
[1742800600042,12.51476,2075.7,2075.3,4.81836]
[1742800600242,12.51476,2075.7,2075.3,9.63684]
[1742800600418,12.51476,2075.7,2075.3,4.81836]
[1742800600626,4.697,2075.7,2075.3,4.81836]
[1742800600830,4.697,2075.7,2075.3,10.2325004]
[1742800601549,9.51475,2075.7,2075.3,4.81836]
[1742800601853,5.39782,2075.6,2075.2,4.81881]
[1742800602951,10.21591,2075.6,2075.1,5.95743397]
[1742800605114,5.39782,2075.6,2075.1,5.95735397]
[1742800605321,4.81821,2075.5,2075.1,4.81891]
[1742800611228,4.81821,2075.5,2075.1,9.63775]
[1742800611425,5.39783,2075.6,2075.2,4.81879]
[1742800612955,0.5799,2075.6,2075.3,4.81839]
[1742800613260,0.5799,2075.6,2075.4,4.81826]
[1742800616264,4.22109,2075.0,2074.9,8.74256975]
[1742800616762,0.104012,2075.9,2075.7,4.81765]
[1742800616936,0.104012,2075.9,2075.7,4.81755]
[1742800617661,0.104012,2075.9,2075.8,4.81741]
[1742800618836,0.104012,2075.9,2075.8,5.780906]
[1742800620633,0.104012,2075.9,2075.8,6.64187211]
[1742800620852,0.104012,2075.9,2075.8,7.143706]
[1742800623479,0.36982176,2077.0,2076.4,0.8128]
[1742800623480,4.81465,2077.0,2076.4,0.8128]
[1742800623647,4.81528,2076.8,2076.3,4.81611]
[1742800623849,4.81515,2076.8,2076.4,4.81587]
[1742800624248,6.097885,2076.9,2076.4,4.81593]
[1742800624462,6.097885,2076.9,2076.4,4.81589]
[1742800624679,5.9063925,2076.8,2076.4,4.81589]
[1742800624882,0.8015,2076.6,2076.3,4.81625]
[1742800626585,4.81591,2076.5,2076.0,9.63371]
[1742800626900,0.8193,2076.4,2075.9,0.8128]
[1742800627084,4.81639,2076.3,2075.8,4.81722]
[1742800627289,6.199359,2076.2,2075.7,9.63507]
[1742800627466,10.895359,2076.2,2075.7,9.63507]
[1742800627666,10.895359,2076.2,2075.8,4.81738]
[1742800627861,10.895359,2076.2,2075.8,9.6346]
[1742800627862,6.078869,2076.2,2075.8,9.6346]
[1742800628076,6.078869,2076.2,2075.9,4.81714]
[1742800628274,1.382869,2076.2,2075.9,4.81701]
[1742800628482,0.8193,2076.2,2076.0,4.81685]
[1742800629189,0.8193,2076.2,2075.9,4.81705]
[1742800629390,0.8193,2076.2,2075.9,9.63408]
[1742800629562,0.8193,2076.2,2075.9,4.81703]
[1742800629769,6.680964,2076.2,2075.8,4.81741]
[1742800629971,5.63581,2076.2,2075.8,4.81741]
[1742800630654,0.8193,2076.2,2075.9,4.81718]
[1742800631899,5.63583,2076.2,2075.7,4.81743]
[1742800632257,5.63583,2076.2,2075.7,0.55]
[1742800632258,0.8193,2076.2,2075.7,0.55]
[1742800632464,0.8193,2076.2,2075.9,4.81707]
[1742800632774,0.8193,2076.2,2075.8,4.81741]
[1742800632974,5.63581,2076.2,2075.8,9.63472]
[1742800633376,5.63581,2076.2,2075.8,9.63462]
[1742800634074,0.8193,2076.2,2075.9,4.81713]
[1742800634493,2.334065,2076.2,2075.9,4.81713]
[1742800634695,4.81673,2076.1,2075.6,4.81787]
[1742800634870,4.8172,2075.9,2075.5,4.81801]
[1742800635065,4.81758,2075.8,2075.4,4.81822]
[1742800635271,0.8193,2075.7,2075.4,4.81822]
[1742800636093,4.81668,2076.2,2075.9,4.81708]
[1742800636094,5.5143,2076.2,2075.9,4.81708]
[1742800636298,0.85143,2076.1,2075.9,4.81708]
[1742800636669,0.85143,2076.1,2075.8,4.81738]
[1742800636999,0.85143,2076.1,2075.8,9.63465]
[1742800637299,0.85143,2076.1,2075.8,4.81727]
[1742800637488,0.85143,2076.1,2075.8,9.63458]
[1742800637688,10.33082,2076.2,2075.8,9.63458]
[1742800637890,10.33082,2076.2,2075.8,4.81727]
[1742800638969,15.14751,2076.2,2075.8,4.81727]
[1742800639416,4.81673,2076.1,2075.7,4.81758]
[1742800639604,6.331705,2076.0,2075.7,4.81758]
[1742800639773,1.514755,2076.0,2075.7,4.81758]
[1742800639973,1.514755,2076.0,2075.7,4.81753]
[1742800640173,1.514755,2076.0,2075.8,4.81737]
[1742800640396,10.3308,2076.2,2075.8,4.81737]
[1742800640785,4.81673,2076.1,2075.7,9.63505]
[1742800640974,0.8193,2076.2,2076.0,4.81679]
[1742800641169,5.5143,2076.2,2075.9,4.81718]
[1742800642076,10.33079,2076.2,2075.9,4.81718]
[1742800642400,1.814722,2076.1,2075.9,4.81718]
[1742800642704,5.5143,2076.2,2075.9,4.81718]
[1742800643199,0.8193,2076.2,2075.9,4.81718]
[1742800643399,13.32761,2076.4,2076.0,4.81674]
[1742800643611,10.32761,2076.4,2076.0,4.81674]
[1742800643913,4.81626,2076.3,2075.9,4.81717]
[1742800645186,6.330647,2076.3,2075.9,4.81717]
[1742800647006,1.514387,2076.3,2075.9,4.81717]
[1742800647211,6.330757,2076.3,2075.9,4.81717]
[1742800647508,1.514387,2076.3,2076.0,4.81685]
[1742800648813,1.514387,2076.3,2075.9,4.81712]
[1742800649011,1.1841997,2076.2,2075.9,4.81712]
[1742800649210,1.1841997,2076.2,2075.8,4.81741]
[1742800649211,0.8165,2076.1,2075.8,4.81741]
[1742800649917,5.63327,2076.1,2075.7,4.81763]
[1742800650215,5.63327,2076.1,2075.6,4.81786]
[1742800650216,4.81741,2075.8,2075.2,4.8186]
[1742800650411,5.63426,2075.7,2075.3,4.81856]
[1742800650707,0.8165,2075.7,2075.5,4.81805]
[1742800650912,6.29702637,2075.7,2075.5,4.81805]
[1742800651683,5.5115,2075.7,2075.4,4.81833]
[1742800651883,4.695,2075.7,2075.4,4.81824]
[1742800652089,9.51266,2075.7,2075.3,4.81847]
[1742800652294,4.695,2075.7,2075.4,4.81834]
[1742800653513,9.51266,2075.7,2075.4,4.81834]
[1742800653709,11.327337,2075.7,2075.4,4.81834]
[1742800654093,0.8165,2075.6,2075.1,4.81903]
[1742800654302,4.81826,2075.5,2075.1,4.81903]
[1742800655989,4.81834,2075.4,2075.0,0.97495078]
[1742800656189,4.81889,2075.2,2074.7,4.81981]
[1742800656394,4.81908,2075.1,2074.7,4.81981]
[1742800656708,4.81908,2075.1,2074.8,4.81973]
[1742800657011,4.81883,2075.2,2074.8,4.81973]
[1742800657214,1.514891,2075.2,2074.9,4.81932]
[1742800657385,1.514891,2075.2,2074.9,9.63868]
[1742800657590,1.514891,2075.2,2074.9,4.81932]
[1742800657990,5.5115,2075.3,2075.0,4.81922]
[1742800658191,4.695,2075.3,2075.2,4.81881]
[1742800658417,4.695,2075.6,2075.3,4.81852]
[1742800658584,6.939822,2075.6,2075.2,4.81881]
[1742800658785,11.757722,2075.6,2075.2,4.81881]
[1742800659182,11.757722,2075.6,2075.2,4.81862]
[1742800659431,0.8118,2075.6,2075.5,4.81811]
[1742800659626,5.5068,2075.8,2075.4,9.63646]
[1742800659915,0.8118,2075.8,2075.5,4.81794]
[1742800660131,0.8118,2075.8,2075.6,4.81774]
[1742800660610,10.34476,2076.0,2075.6,4.81774]
[1742800661614,5.5278,2076.0,2075.7,0.04817369]
[1742800661819,5.5278,2076.0,2075.8,4.81728]
[1742800661989,4.696,2076.0,2075.8,4.81728]
[1742800662389,4.696,2076.1,2075.8,4.81728]
[1742800662604,5.64837,2076.2,2075.8,4.86544992]
[1742800662795,5.64837,2076.2,2075.8,4.81728]
[1742800663043,10.34337,2076.2,2075.8,4.81728]
[1742800663692,10.34337,2076.2,2076.0,4.81686]
[1742800663693,5.5268,2076.2,2076.0,4.81686]
[1742800663893,0.8318,2076.4,2076.0,4.81682]
[1742800664216,5.5268,2076.4,2076.1,4.81658]
[1742800664439,3.0,2076.5,2075.9,0.8331]
[1742800664587,4.81534,2076.7,2076.3,4.81609]
[1742800664788,9.51034,2076.7,2076.3,6.130799]
[1742800666637,0.8318,2077.0,2076.4,4.81602]
[1742800666794,4.695,2076.9,2076.3,1.314709]
[1742800666999,0.8318,2076.6,2076.2,9.63278]
[1742800667229,0.8318,2076.6,2076.2,4.8163]
[1742800667429,0.8318,2076.6,2076.2,9.63267]
[1742800667626,0.8318,2076.6,2076.3,4.8162]
[1742800668119,5.64741,2076.6,2076.2,4.8163]
[1742800668337,0.8318,2076.6,2076.2,5.86292]
[1742800668519,0.8318,2076.6,2076.1,5.64981]
[1742800668717,5.64745,2076.6,2076.2,4.81644]
[1742800669026,0.8318,2076.6,2076.3,4.81617]
[1742800669938,0.8318,2076.6,2076.4,4.81587]
[1742800670617,0.8318,2076.6,2076.3,4.8162]
[1742800671019,0.8318,2076.6,2076.2,4.81649]
[1742800671341,5.64736,2076.6,2076.2,5.381449]
[1742800671509,0.8318,2076.6,2076.2,5.381259]
[1742800671836,0.8318,2076.6,2076.3,4.81616]
[1742800672338,0.8318,2076.6,2076.2,5.381259]
[1742800672509,5.64751,2076.6,2076.1,4.8167]
[1742800672705,4.81606,2076.4,2076.0,4.81681]
[1742800672910,9.63222,2076.4,2076.0,4.81681]
[1742800673314,4.81606,2076.4,2076.0,4.81681]
[1742800673634,4.81649,2076.2,2075.8,4.81724]
[1742800674130,4.81649,2076.2,2075.8,9.63452]
[1742800674338,4.81649,2076.2,2075.8,10.7721004]
[1742800675315,4.8163,2076.3,2075.9,4.81717]
[1742800675518,9.5103,2076.3,2075.9,4.81717]
[1742800675711,4.694,2076.3,2075.9,4.81718]
[1742800675912,4.694,2076.3,2076.0,4.81687]
[1742800677732,4.694,2076.3,2076.1,4.81653]
[1742800677932,4.694,2076.3,2076.2,4.81649]
[1742800679046,7.694,2076.5,2076.2,4.81649]
[1742800679413,7.694,2076.5,2076.3,4.81616]
[1742800679613,4.694,2076.5,2076.3,4.81616]
[1742800680448,4.694,2076.5,2076.2,4.81642]
[1742800681049,4.694,2076.5,2076.3,4.81618]
[1742800681431,5.63453,2076.8,2076.5,4.81579]
[1742800681637,4.694,2076.7,2076.4,4.81595]
[1742800681813,5.63453,2076.8,2076.4,4.81595]
[1742800682339,4.81535,2076.7,2076.3,5.8276053]
[1742800682813,4.81535,2076.7,2076.3,10.69183196]
[1742800683018,5.63453,2076.8,2076.4,4.81596]
[1742800683234,10.32853,2076.8,2076.4,4.81596]
[1742800683723,10.32853,2076.8,2076.3,5.8274953]
[1742800683925,4.81541,2076.7,2076.3,4.81607]
[1742800684646,5.6345,2076.8,2076.4,4.81591]
[1742800684815,0.8194,2076.8,2076.6,4.81549]
[1742800685014,0.8194,2076.8,2076.6,4.81547]
[1742800685245,4.693,2076.9,2076.6,5.297017]
[1742800685545,5.5124,2077.0,2076.7,4.81524]
[1742800685753,5.5124,2077.0,2076.8,4.81501]
[1742800686049,0.8194,2077.0,2076.8,4.81501]
[1742800686566,3.0,2077.1,2076.8,4.81501]
[1742800686716,4.693,2077.3,2076.8,4.8151]
[1742800687028,7.693,2077.3,2077.0,4.81452]
[1742800687442,7.693,2077.3,2077.0,9.62906]
[1742800687752,7.693,2077.3,2077.0,4.81452]
[1742800688249,5.6424,2077.6,2077.1,0.8184]
[1742800688568,3.0,2077.4,2077.1,5.63266]
[1742800689249,3.0,2077.4,2077.2,4.8141]
[1742800690048,3.0,2077.5,2077.1,5.63266]
[1742800690658,7.8135,2077.5,2077.1,0.8184]
[1742800690887,7.8135,2077.5,2077.1,5.63277]
[1742800691386,7.8135,2077.5,2077.1,0.8184]
[1742800691387,4.81383,2077.4,2077.1,0.8184]
[1742800691570,4.81383,2077.4,2077.0,4.81459]